[Event "European Women-ch 2023"]
[Site "Petrovac"]
[Date "2023.03.23"]
[Round "6.7"]
[White "Ivekovic, Tihana"]
[Black "Pirvulescu, Ekaterina"]
[Result "1/2-1/2"]
[ECO "D27"]
[WhiteElo "2132"]
[BlackElo "2032"]
[Annotator "TA"]
[PlyCount "89"]
[EventDate "2023.03.15"]
[EventType "swiss"]
[EventCountry "MNE"]
[SourceTitle "playchess.com"]
[Source "ChessBase"]
[SourceQuality "1"]
[TimeControl "40/5400+30:1800+30"]

{[%evp 11,89,22,28,13,7,10,31,28,16,20,46,15,23,2,26,5,32,0,80,85,86,84,79,93,98,107,99,97,96,86,95,83,99,53,129,81,72,57,32,37,62,67,73,68,112,43,57,0,0,0,0,0,55,-9,-12,-104,-115,-129,0,0,0,0,0,0,0,-8,0,0,0,0,378,378,371,0,0,0,0,0,0,0]} 1. d4 {[%emt 0:00:02]} d5 {[%emt 0:00:11]} 2. c4 {[%emt 0:00:05]} dxc4 {[%emt 0:00:04]} 3. Nf3 {[%emt 0:00:04]} Nf6 {[%emt 0:00:05]} 4. e3 {[%emt 0:00:04]} e6 {[%emt 0:00:03]} 5. Bxc4 {[%emt 0:00:05]} a6 {[%emt 0:00:03]} 6. O-O {[%emt 0:00:11]} c5 {[%emt 0:00:03]} 7. Be2 {[%emt 0:00:29] D27: Queen's Gambit Accepted: Classical main line: 7 e4!? and 7 a4.} cxd4 {[%emt 0:07:04]} 8. Nxd4 {[%emt 0:00:12]} Be7 {[%emt 0:00:09]} 9. b3 {[%emt 0:00:28] White is slightly better.} O-O {[%emt 0:00:04]} 10. Bb2 {[%emt 0:00:07]} b5 $1 {[%emt 0:07:42][%mdl 4] is currently scoring better than 10...Bd7.} 11. Nd2 {[%emt 0:05:19]} Bb7 {[%emt 0:00:28]} 12. Bf3 {[%emt 0:01:38]} Ra7 {[%emt 0:08:13]} 13. Qe2 {[%emt 0:02:10]} Qd7 {[%emt 0:06:47]} 14. Rac1 {[%emt 0:03:12] [#]} e5 $146 {[%emt 0:18:58]} (14... Bxf3 $11 15. N2xf3 (15. Qxf3 e5 $11) (15. N4xf3 Rd8 $11) 15... Rc7) ({Predecessor:} 14... Bxf3 15. N2xf3 Rc8 16. Ne5 Qe8 17. a4 bxa4 18. bxa4 Rac7 19. Rxc7 Rxc7 20. Ra1 Qc8 {1-0 Caruana,F (2786)-So,W (2776) Warsaw Superbet Classic Blitz 2022 (17.5)}) 15. Bxb7 $1 $16 {[%emt 0:00:22] aiming for Bc6.} exd4 {[%emt 0:01:39]} 16. Bf3 {[%emt 0:02:09] White is more active.} d3 {[%emt 0:02:35]} 17. Qd1 {[%emt 0:00:09]} Rc7 {[%emt 0:11:16]} 18. Rxc7 {[%emt 0:04:17]} Qxc7 {[%emt 0:00:01]} 19. Qb1 {[%emt 0:00:36]} Rd8 {[%emt 0:05:35]} 20. Rc1 {[%emt 0:17:06]} Qa5 {[%emt 0:07:16]} 21. Rd1 {[%emt 0:05:59]} Nbd7 {[%emt 0:04:56] [#]} 22. Bd4 {[%emt 0:04:51]} (22. Nf1 $1 $16) 22... Bb4 {[%emt 0:09:29]} (22... Nf8 $1 $14) 23. Ne4 {[%emt 0:01:13]} ({White should play} 23. Qxd3 Nf8 24. Qc2) 23... d2 {[%emt 0:02:07]} 24. Qc2 {[%emt 0:16:47][%cal Re4d2]} Nxe4 {[%emt 0:00:59]} 25. Bxe4 {[%emt 0:00:04] This pair of bishops is nice.} Nf6 {[%emt 0:02:43]} 26. Bxf6 {[%emt 0:01:17]} gxf6 {[%emt 0:00:03]} 27. Bxh7+ {[%emt 0:00:07]} Kf8 {[%emt 0:00:20]} 28. Bf5 {[%emt 0:01:34]} (28. h4 $16) 28... Rd5 $14 {[%emt 0:01:07][%cal Bd8d5,Bd5c5,Bc5g5][%mdl 32]} 29. Qc8+ {[%emt 0:03:55]} (29. Bg4 $14) 29... Kg7 $1 $11 {[%emt 0:00:34] ...Rc5 is the strong threat.} 30. Be4 {[%emt 0:00:20]} Rc5 {[%emt 0:00:33]} 31. Qg4+ {[%emt 0:00:10]} Kf8 {[%emt 0:01:23]} (31... Rg5 $11 32. Qh4 Qxa2 33. Qh7+ Kf8 34. Qh8+ Rg8) 32. h4 {[%emt 0:01:54]} (32. Bf3 $1 $14) 32... Qxa2 {[%emt 0:00:41] White must now prevent ...f5.} 33. h5 {[%emt 0:00:43]} (33. Qf4 $11) 33... Qxb3 $17 {[%emt 0:00:14]} ({Much worse is} 33... f5 $6 34. Qg5 (34. Bxf5 $2 {loses.} Qxb3 35. Kh2 Rxf5 $19) 34... Qxb3 35. Bf3 $11) 34. Bf3 {[%emt 0:00:19] [#] h6 would be deadly. White is weak on the dark squares} Rg5 {[%emt 0:02:12] Prevents h6} ({Black should try} 34... Qc4 $1 $17 {[%cal Rc4g4] Hoping for ...Qxg4.} 35. Qg3 Rg5 36. Qb8+ Kg7) 35. Qc8+ $11 {[%emt 0:00:08]} Kg7 {[%emt 0:00:27]} 36. Qxa6 {[%emt 0:00:20][%cal Oh5h6]} Qe6 {[%emt 0:00:31]} 37. Qa1 {[%emt 0:01:42]} Qe5 {[%emt 0:00:43]} 38. Qa2 {[%emt 0:01:37][%cal Oh5h6]} Qe6 {[%emt 0:00:26]} 39. Qb2 {[%emt 0:00:59]} Qc4 {[%emt 0:01:05]} 40. h6+ {[%emt 0:00:00][%mdl 64] Decoy} Kxh6 $2 {[%emt 0:00:00][%mdl 8192]} (40... Kg6 $1 $11 {and Black is okay.}) 41. Qxf6+ $18 {[%emt 0:02:52]} Rg6 {[%emt 0:01:13]} 42. Qf5 {[%emt 0:00:25]} (42. Qh8+ $18 Kg5 43. Bh5) 42... Bc3 $11 {[%emt 0:05:17] The position is equal.} (42... Qh4 $2 43. Qxf7 Qf6 44. Qb7 $18) 43. g3 {[%emt 0:06:17]} Rf6 {[%emt 0:03:24]} 44. Qh5+ {[%emt 0:00:45]} Kg7 {[%emt 0:00:11]} 45. Be2 {[%emt 0:05:01] Weighted Error Value: White=0.26 (precise) /Black=0.27 (precise)} 1/2-1/2

[Event "European Women-ch 2023"]
[Site "Petrovac"]
[Date "2023.03.23"]
[Round "6.8"]
[White "Hrebenshchykova, Yelyzaveta"]
[Black "Osmak, Yuliia"]
[Result "0-1"]
[ECO "B95"]
[WhiteElo "2289"]
[BlackElo "2445"]
[Annotator "TA"]
[PlyCount "101"]
[EventDate "2023.03.15"]
[EventType "swiss"]
[EventCountry "MNE"]
[SourceTitle "playchess.com"]
[Source "ChessBase"]
[SourceQuality "1"]
[TimeControl "40/5400+30:1800+30"]

{[%evp 16,101,13,0,0,-25,-16,-43,-56,-40,-14,-70,-30,-62,-26,-17,0,-85,-57,-154,-142,-137,-158,-160,-181,-209,-194,-191,-65,-33,-39,-117,-105,-105,-104,-102,-109,-125,-92,-184,-190,-184,-118,-227,-233,-279,-252,-266,-270,-331,-340,-319,-251,-247,-231,-248,-252,-831,-814,-740,-364,-979,-939,-1402,-1365,-5189,-5181,-4802,-1032,-849,-604,-595,-595,-581,-509,-541,-517,-5265,-4845,-2400,-2431,-2384,-2338,-29976,-29977,-29963,-10284,-29990]} 1. e4 {[%emt 0:00:03]} c5 {[%emt 0:00:04]} 2. Nf3 {[%emt 0:00:15]} d6 {[%emt 0:00:05]} 3. d4 {[%emt 0:01:07]} cxd4 {[%emt 0:00:04]} 4. Nxd4 {[%emt 0:00:03]} Nf6 {[%emt 0:00:05]} 5. Nc3 {[%emt 0:00:04]} a6 {[%emt 0:00:04]} 6. Bg5 {[%emt 0:02:07]} e6 {[%emt 0:00:25]} 7. Qf3 {[%emt 0:00:16]} Be7 {[%emt 0:02:19]} 8. O-O-O {[%emt 0:02:15]} Qc7 {[%emt 0:05:07]} 9. Be2 {[%emt 0:13:13]} Nbd7 {[%emt 0:04:40] B95: Sicilian Najdorf: 6 Bg5 e6, unusual White 7th moves.} 10. Rhe1 {[%emt 0:11:13]} O-O {[%emt 0:04:01]} 11. g4 {[%emt 0:04:58]} b5 {[%emt 0:12:47] Black is slightly better.} 12. a3 {[%emt 0:04:55]} Bb7 {[%emt 0:01:49]} 13. h4 {[%emt 0:08:33] [#]} (13. Qe3 $11) 13... Nc5 $146 {[%emt 0:16:13]} ({Predecessor:} 13... Rfe8 14. Bxf6 Bxf6 15. g5 Be5 16. h5 Bxd4 17. Rxd4 Qc5 18. Qe3 d5 19. e5 Nf8 {1-0 Tkachuk,A (2119)-Vlasov,V (2026) Zvenigorod Autumn op-B 2008 (7)}) 14. Bf1 {[%emt 0:11:01]} Rac8 {[%emt 0:03:17]} 15. Kb1 {[%emt 0:01:39]} Rfe8 {[%emt 0:14:00]} 16. Bd3 {[%emt 0:17:36]} (16. Bxf6 $11 Bxf6 17. g5) 16... Qb6 {[%emt 0:07:11] Hoping for ...b4.} 17. Bc1 {[%emt 0:03:47]} (17. Nb3 $1 $15) 17... b4 $17 {[%emt 0:04:07]} 18. axb4 {[%emt 0:00:11]} Qxb4 {[%emt 0:00:07]} 19. g5 {[%emt 0:03:02]} Qxd4 {[%emt 0:07:53]} 20. Bb5 {[%emt 0:01:28]} Qb4 {[%emt 0:02:37]} (20... Qe5 21. Bxe8 (21. Bf4 Qf5 $17) 21... Nxe8 22. Bf4 Nxe4 23. Bxe5 $14 (23. Nxe4 Qb5 $14)) 21. gxf6 {[%emt 0:00:36][%cal Oe1g1] Rg1! is the strong threat.} Bxf6 {[%emt 0:05:12]} ({Black should play} 21... axb5 $19 22. fxe7 Rxe7) 22. Bxe8 $15 {[%emt 0:00:06]} Rxe8 {[%emt 0:00:07]} 23. Rxd6 {[%emt 0:05:12] [#]} (23. Na2 $15 Qc4 24. Nc3) 23... Nxe4 $1 $17 {[%emt 0:03:34][%mdl 512]} 24. Nxe4 {[%emt 0:01:03]} Bxe4 {[%emt 0:00:06][%mdl 64] Remove Defender} (24... Qxe1 $2 25. Nxf6+ gxf6 26. Qxb7 $18) (24... Bxb2 25. Bd2 Bc3+ 26. Kc1 Bb2+ 27. Kd1 Bxe4 28. Qxf7+ (28. Bxb4 Bxf3+ 29. Kd2 Bf6 $11) 28... Kxf7 29. Bxb4 Bf3+ 30. Kd2 $16) 25. Qxe4 {[%emt 0:01:00]} Qxd6 {[%emt 0:00:09]} 26. Bg5 {[%emt 0:00:09]} Qd4 {[%emt 0:00:58][%csl Gf6][%cal Rd4b2]} 27. Bxf6 {[%emt 0:04:43]} (27. Qxd4 $17 {was necessary.} Bxd4 28. Be3) 27... Qxf6 {[%emt 0:00:08][%mdl 4096] Endgame KQR-KQR} 28. f3 {[%emt 0:00:03]} Rb8 {[%emt 0:00:51]} (28... Rd8 $19 29. Re3 h5) 29. b3 {[%emt 0:02:52] [#]} (29. Qe5 $17 Qd8 30. b3) 29... Rd8 $1 $19 {[%emt 0:01:03]} 30. Qc4 {[%emt 0:01:24]} a5 {[%emt 0:00:46]} (30... Qxf3 $2 31. Rf1 Qb7 32. Rg1 $19) 31. Qc5 {[%emt 0:00:34]} a4 {[%emt 0:01:16] aiming for ...axb3.} ({Weaker is} 31... Qxf3 32. Qxa5 Rc8 33. Qd2 $17) 32. bxa4 {[%emt 0:00:12]} Rb8+ {[%emt 0:00:54]} (32... Qxh4 $2 33. Re4 Qf6 34. Ka2 $19) (32... Qxf3 $2 {too greedy.} 33. Re3 Qf2 34. Rc3 Qxh4 35. a5 $19) 33. Kc1 {[%emt 0:00:03]} Qa1+ {[%emt 0:00:56]} (33... Qxf3 $2 {perishes.} 34. Qc7 Ra8 35. Kb2 $19) 34. Kd2 {[%emt 0:00:03]} Qxa4 {[%emt 0:00:21]} 35. Re4 {[%emt 0:00:59]} Rd8+ {[%emt 0:00:07]} 36. Kc3 $2 {[%emt 0:00:33]} (36. Ke3 Qa1 37. Kf4) 36... Qa1+ {[%emt 0:00:25]} 37. Kb3 {[%emt 0:00:37]} h6 {[%emt 0:00:59]} (37... Ra8 $142 38. Kc4 Qa6+ 39. Kb3 h6) 38. Qc7 $2 {[%emt 0:01:03]} (38. Qc3 Qa6 39. Ra4 Rb8+ 40. Ka3) 38... Ra8 {[%emt 0:00:31]} 39. Kc4 {[%emt 0:00:29]} Qf1+ {[%emt 0:00:59]} 40. Kd4 {[%emt 0:00:00]} Qf2+ {[%emt 0:00:00]} 41. Re3 {[%emt 0:05:35]} Qxh4+ {[%emt 0:04:18]} (41... Qd2+ $142 42. Rd3 Ra4+ {[%mdl 64] Skewer} 43. c4 Qf2+ 44. Re3 Ra3 45. Qb8+ Kh7 46. Qb1+ f5) 42. Kd3 {[%emt 0:02:00]} Rd8+ {[%emt 0:00:29]} 43. Ke2 {[%emt 0:00:26]} Qg5 {[%emt 0:02:52] ( -> ...Qg2+)} 44. Rd3 {[%emt 0:02:39]} Qg2+ {[%emt 0:00:12]} 45. Ke3 {[%emt 0:00:04]} Rxd3+ {[%emt 0:01:39][%mdl 64] Deflection} 46. Kxd3 {[%emt 0:04:45]} (46. cxd3 $142 Qg5+ 47. Ke2) 46... Qxf3+ {[%emt 0:00:05] KQ-KQ} 47. Kd2 {[%emt 0:00:02]} g5 {[%emt 0:02:51]} 48. Qd8+ {[%emt 0:00:57]} Kg7 {[%emt 0:00:13] White must now prevent ...Qd5+.} 49. c4 {[%emt 0:00:05] Wards off Qd5+} Qf2+ {[%emt 0:01:19]} 50. Kd3 {[%emt 0:00:41]} Qf1+ {[%emt 0:00:19]} 51. Kd4 {[%emt 0:00:33] Weighted Error Value: White=1.02/Black=0.48} 0-1

[Event "European Women-ch 2023"]
[Site "Petrovac"]
[Date "2023.03.23"]
[Round "6.8"]
[White "Chelushkina, Irina"]
[Black "Cyfka, Karina"]
[Result "1-0"]
[ECO "C55"]
[WhiteElo "2207"]
[BlackElo "2350"]
[Annotator "TA"]
[PlyCount "95"]
[EventDate "2023.03.15"]
[EventType "swiss"]
[EventCountry "MNE"]
[SourceTitle "playchess.com"]
[Source "ChessBase"]
[SourceQuality "1"]
[TimeControl "40/5400+30:1800+30"]

{[%evp 9,95,28,37,42,36,32,38,34,28,35,26,-41,10,10,47,47,71,43,79,78,96,91,96,72,155,157,215,203,197,197,222,232,248,214,211,179,277,245,241,195,227,191,175,198,227,221,214,215,220,208,155,99,124,94,211,116,122,116,119,133,123,124,97,0,476,471,596,621,654,654,654,639,644,629,561,542,708,714,680,680,703,704,702,699,29991,29992,29992,2169]} 1. e4 {[%emt 0:00:11]} e5 {[%emt 0:00:07]} 2. Nf3 {[%emt 0:00:06]} Nc6 {[%emt 0:00:15]} 3. Bc4 {[%emt 0:00:08]} Nf6 {[%emt 0:00:16]} 4. d3 {[%emt 0:00:13]} h6 {[%emt 0:00:26]} 5. c3 {[%emt 0:00:57]} d6 {[%emt 0:00:35]} 6. a4 {[%emt 0:00:39]} g6 {[%emt 0:03:44]} 7. a5 {[%emt 0:02:12]} a6 {[%emt 0:01:12]} 8. Qb3 {[%emt 0:01:31] White is slightly better.} Qe7 {[%emt 0:02:46]} 9. O-O {[%emt 0:00:34]} Bg7 {[%emt 0:01:15]} 10. d4 {[%emt 0:04:17]} (10. Rd1 $11) 10... O-O {[%emt 0:06:39]} (10... Nxe4 $15 11. Re1 Ng5) 11. Re1 {[%emt 0:02:20]} Nh5 {[%emt 0:04:20]} 12. Be3 {[%emt 0:03:14]} Kh8 {[%emt 0:08:38]} 13. Nbd2 {[%emt 0:01:38]} Nd8 {[%emt 0:13:29]} 14. Qa3 {[%emt 0:04:43][%cal Of3e5] Strongly threatening Nxe5!} Qe8 {[%emt 0:05:39]} 15. dxe5 {[%emt 0:03:20]} dxe5 {[%emt 0:01:02]} 16. Qc5 {[%emt 0:05:42]} c6 {[%emt 0:06:58]} ({Black should play} 16... Nc6) 17. Qb4 $16 {[%emt 0:03:25] White is much more active. Black is weak on the dark squares} Nf6 {[%emt 0:09:56]} (17... Rg8 $16 {was worth a try.} 18. Bb3 Be6 19. Bxe6 Qxe6) 18. Bf1 {[%emt 0:06:03]} Bg4 {[%emt 0:09:27]} 19. h3 {[%emt 0:03:46]} Bxf3 {[%emt 0:00:04]} 20. Nxf3 {[%emt 0:00:02]} Rg8 {[%emt 0:02:22]} 21. Rad1 {[%emt 0:00:56]} Bf8 {[%emt 0:02:03]} 22. Bc5 {[%emt 0:00:55][%cal Of3e5]} Bg7 {[%emt 0:03:19]} (22... Kg7 {is a better defense.} 23. Bc4 Rc8 24. Bxf8+ Qxf8 25. Qxf8+ (25. Nxe5 Qxb4 26. cxb4 Re8 $16) 25... Rxf8 26. Nxe5 Rc7) 23. Bd6 {[%emt 0:00:43]} Nd7 {[%emt 0:00:49]} 24. Qb3 {[%emt 0:08:39]} Rc8 {[%emt 0:01:33]} 25. Bc4 {[%emt 0:02:00]} Bf8 {[%emt 0:02:05]} 26. Qc2 {[%emt 0:00:42]} Bxd6 {[%emt 0:04:52]} 27. Rxd6 {[%emt 0:00:06] Qd2 is the strong threat.} Kg7 {[%emt 0:00:08]} 28. Qd2 {[%emt 0:05:02]} Nf6 {[%emt 0:00:12]} 29. Nh2 $40 {[%emt 0:07:44][%cal Od6f6][%mdl 128] White has strong attack.} (29. Rxf6 Kxf6 30. Qd6+ (30. Qxh6 Rh8 $16) 30... Kg7) 29... h5 {[%emt 0:01:54]} 30. Nf3 {[%emt 0:01:18]} (30. Rxf6 $6 Kxf6 31. Qd6+ Kg7 $11) (30. f4 $142) 30... Qe7 {[%emt 0:01:37]} 31. Rd3 {[%emt 0:08:05]} c5 {[%emt 0:02:25] [#]} (31... Re8 $16 {might work better.}) 32. Ng5 {[%emt 0:01:31]} ({Less strong is} 32. Rd6 Nc6 $14) (32. Qg5 $1 $18) 32... Rf8 {[%emt 0:00:38]} 33. f4 {[%emt 0:04:03][%cal Bf2f4,Bf4f5,Bf5g6][%mdl 32]} ({Don't play} 33. Rd6 Nc6 $14) 33... Nc6 {[%emt 0:00:17]} 34. f5 {[%emt 0:00:20] And now fxg6 would win.} (34. Rf1 {simplifies} Rcd8 35. Rxd8 Qxd8 36. Qxd8 Rxd8 37. Nxf7 Re8 38. Ng5) 34... Nxa5 {[%emt 0:01:39]} 35. Bxf7 {[%emt 0:02:11]} Rxf7 {[%emt 0:00:06]} 36. Ne6+ {[%emt 0:00:21]} ({Better is} 36. Nxf7 $16 Kxf7 37. fxg6+ Kg7 38. Rf1) 36... Kh8 $2 {[%emt 0:01:30][%mdl 8192]} (36... Kh7 $1 $11) 37. fxg6 $18 {[%emt 0:02:13]} Rg7 {[%emt 0:00:53]} 38. Qh6+ {[%emt 0:02:12]} Kg8 {[%emt 0:00:17]} 39. Nxg7 {[%emt 0:07:37]} (39. Qxg7+ Qxg7 40. Nxg7 Kxg7 $17) 39... Qxg7 {[%emt 0:00:02]} 40. Qg5 {[%emt 0:00:00]} Qe7 {[%emt 0:00:00]} 41. Rf3 {[%emt 0:07:56]} Kg7 {[%emt 0:04:18]} 42. Rf5 {[%emt 0:00:53]} Nc6 {[%emt 0:00:53]} 43. Ref1 {[%emt 0:00:18][%cal Rf5f6]} Rf8 {[%emt 0:00:29]} 44. g4 {[%emt 0:02:36]} hxg4 {[%emt 0:05:40]} 45. h4 {[%emt 0:01:15] Hoping for h5.} Nxe4 {[%emt 0:01:31]} 46. Qh5 {[%emt 0:03:27][%csl Gg6][%cal Rh5h7]} ({Not} 46. Qxg4 Rxf5 47. Rxf5 Nf6 $18) 46... Rh8 {[%emt 0:06:24] Against Qh7+} 47. Rf7+ {[%emt 0:00:11][%mdl 64] [#] Skewer, Double Attack} Kg8 {[%emt 0:00:05]} 48. Rf8+ {[%emt 0:00:11] A cool game by Chelushkina.   Weighted Error Value: White=0.15 (very precise) /Black=0.47} (48. Qxg4 $142 Rxh4 49. Qc8+ Nd8 50. Rxe7 Rg4+ 51. Qxg4 Nd6 52. Qh4 N8f7 53. Qh7+ Kf8 54. Rfxf7+ Nxf7 55. Qxf7#) 1-0

[Event "European Women-ch 2023"]
[Site "Petrovac"]
[Date "2023.03.23"]
[Round "6.8"]
[White "Tsotsonava, Elene"]
[Black "Kejzar, Petra"]
[Result "1-0"]
[ECO "B30"]
[WhiteElo "2030"]
[BlackElo "2128"]
[Annotator "TA"]
[PlyCount "57"]
[EventDate "2023.03.15"]
[EventType "swiss"]
[EventCountry "MNE"]
[SourceTitle "playchess.com"]
[Source "ChessBase"]
[SourceQuality "1"]
[TimeControl "40/5400+30:1800+30"]

{[%evp 9,57,40,32,42,35,28,49,45,21,27,45,49,49,45,53,31,97,96,101,84,81,60,152,132,266,172,167,194,468,302,306,298,296,272,322,328,560,547,535,554,585,502,769,760,765,752,1108,1072,1050,823]} 1. e4 {[%emt 0:00:02]} c5 {[%emt 0:00:04]} 2. Nf3 {[%emt 0:00:04]} Nc6 {[%emt 0:00:21]} 3. Bb5 {[%emt 0:00:06]} e5 {[%emt 0:00:19]} 4. O-O {[%emt 0:01:23]} Bd6 {[%emt 0:00:09]} 5. c3 {[%emt 0:00:44]} a6 {[%emt 0:01:04]} 6. Ba4 {[%emt 0:00:20]} b5 {[%emt 0:00:49]} 7. Bc2 {[%emt 0:00:38]} Nge7 {[%emt 0:01:27]} 8. a4 {[%emt 0:01:47] White is slightly better.} b4 {[%emt 0:02:01]} 9. Re1 {[%emt 0:01:04]} Qc7 {[%emt 0:02:34]} 10. d3 {[%emt 0:12:21]} Ng6 {[%emt 0:11:41]} 11. Nbd2 {[%emt 0:09:10]} O-O {[%emt 0:07:08]} 12. Nc4 {[%emt 0:03:32]} Re8 {[%emt 0:01:03]} (12... Be7 $14) 13. h4 $16 {[%emt 0:08:15][%cal Bh2h4,Bh4h5][%mdl 32]} Bf8 {[%emt 0:02:16]} 14. h5 {[%emt 0:03:41]} Nge7 {[%emt 0:03:03]} 15. h6 {[%emt 0:08:28] aiming for hxg7.} g6 {[%emt 0:01:43]} ({Better is} 15... bxc3 $1 $14 16. bxc3 d5) 16. Ng5 {[%emt 0:13:39][%cal Og5f7] [#] Nxf7! would be deadly. White is more active.} bxc3 {[%emt 0:04:52] Loses the game.} (16... d5 $16 17. Qf3 Nd8 18. exd5 Nxd5) 17. Qf3 {[%emt 0:05:03]} (17. bxc3 $6 Nd8 $16) 17... Nd8 {[%emt 0:01:07]} 18. Bb3 $40 {[%emt 0:10:01][%cal Bc2b3,Bb3f7,Bf7e8][%mdl 160] White is out for blood.} Rb8 $2 {[%emt 0:04:12] [#]} (18... d5) 19. Nd6 $1 {[%emt 0:05:16][%mdl 512]} Qxd6 {[%emt 0:06:48]} (19... Rxb3 $2 20. Nxe8 Qc6 21. Nf6+ Kh8 22. bxc3 Bxh6 23. Ngxh7 (23. Nfxh7 Kg7 $18) (23. Qh3 Qxf6 24. Qxh6 Qg7 $16) 23... Bxc1 24. Raxc1 $18) 20. Bxf7+ {[%emt 0:00:16]} (20. Nxf7 Qb6 21. Nd6+ Qxb3 $17) 20... Kh8 {[%emt 0:00:36][%cal Of8h6] White must now prevent ...Bxh6!} 21. Bxe8 {[%emt 0:00:08]} Bxh6 {[%emt 0:01:34]} 22. bxc3 {[%emt 0:04:24]} (22. Qf7 $6 Bg7 $18) 22... Bb7 $2 {[%emt 0:03:14]} (22... Ng8 23. Nf7+ {[%mdl 64] Discovered Attack} Nxf7) 23. Nf7+ $18 {[%emt 0:03:36] White is clearly winning.} Nxf7 {[%emt 0:00:07]} 24. Qxf7 {[%emt 0:00:05]} ({And not} 24. Bxf7 Bxc1 25. Raxc1 (25. Rexc1 Rf8 $15) 25... Rf8 $15) 24... Ng8 {[%emt 0:02:59]} 25. Qxd7 {[%emt 0:01:25]} Qf8 {[%emt 0:00:41]} (25... Qxd7 $142 26. Bxd7 Bxc1) 26. Bxh6 {[%emt 0:01:35]} Nxh6 {[%emt 0:00:37]} 27. Rab1 {[%emt 0:00:39]} Bc8 {[%emt 0:03:36]} 28. Qc7 {[%emt 0:03:14]} Ng4 {[%emt 0:01:50]} 29. Qf7 {[%emt 0:01:57] Weighted Error Value: White=0.33/Black=0.49} (29. Rxb8 $2 {is a self mate.} Qxf2+ 30. Kh1 Qxe1#) 1-0